Cogmind - Beta 14 @@@ ROGUE MODE // 2025.03.17 @ 08:22:39 Player: pd-p0l Result: Destroyed by G-34 Mercenary with Small Laser Performance ------------- Evolutions (1) 500 Regions Visited (2) 400 Robots Destroyed (45) 225 Value Destroyed (1170) 1170 Prototype IDs (0) 0 Alien Tech Used (0) 0 Bonus (0) 0 TOTAL SCORE: 2295 Bonus ------- None Cogmind --------- Core Integrity 0/400 Matter 233/300 Energy 98/100 System Corruption 0% Temperature Cool (6) Movement Core (50) Location -9/Materials Parts ------- > --- POWER (1) -------- (None) > --- PROPULSION (4) --- (None) > --- UTILITY (2) ------ (None) > --- WEAPON (2) ------- (None) > --- INVENTORY (5) ---- Heavy Ion Engine Flight Unit Hacking Suite Hacking Suite Improved Light Cannon Peak State ------------ > --- POWER ------------ Ion Engine > --- PROPULSION ------- Light Treads Light Treads Light Treads Light Treads > --- UTILITY ---------- Huge Storage Unit Light Armor Plating > --- WEAPON ----------- Assault Rifle Assault Rifle > --- INVENTORY -------- Light Ion Engine Heavy Ion Engine Heavy Ion Engine Light Deuterium Engine Light Deuterium Engine Light Treads Aluminum Leg Aluminum Leg Flight Unit Flight Unit Flight Unit Improved Flight Unit Improved Flight Unit Improved Flight Unit Improved Flight Unit Advanced Targeting Computer Hacking Suite Improved EM Shotgun Beam Rifle Assault Rifle Assault Rifle Improved Light Cannon Improved Light Cannon Grenade Launcher Improved Datajack [Rating: 14] Favorites ----------- Power Ion Engine Engine Ion Engine Propulsion Light Treads Treads Light Treads Leg Aluminum Leg Flight Unit Flight Unit Utility Huge Storage Unit Device Heat Sink Storage Huge Storage Unit Processor Targeting Computer Protection Light Armor Plating Weapon Assault Rifle Ballistic Gun Assault Rifle Launcher Grenade Launcher Build | -11 -10 -9 ------- Run | Yrd Mat Mat Slots Evolved 2 | . . 2 Power . | . . . Propulsion 2 | . . 2 Utility . | . . . Weapon . | . . . Parts Attached 35 | 4 11 20 Power 4 | 1 2 1 Engine 4 | 1 2 1 Core . | . . . Reactor . | . . . Propulsion 18 | 2 5 11 Treads 11 | . 4 7 Leg 5 | 2 1 2 Wheel . | . . . Hover . | . . . Flight 2 | . . 2 Utility 5 | 1 2 2 Device 1 | . 1 . Storage 2 | 1 1 . Processor 1 | . . 1 Hackware . | . . . Protection 1 | . . 1 Artifact . | . . . Weapon 8 | . 2 6 Energy Gun . | . . . Energy Cannon . | . . . Ballistic Gun 5 | . 2 3 Ballistic Cannon . | . . . Launcher 3 | . . 3 Special Weapon . | . . . Impact Weapon . | . . . Slashing Weapon . | . . . Piercing Weapon . | . . . Special Melee Weapon . | . . . Unidentified Prototypes . | . . . Parts Lost 19 | . 1 18 Power 3 | . 1 2 Propulsion 10 | . . 10 Utility 1 | . . 1 Weapon 5 | . . 5 Highest Loss Streak 8 | . 1 8 To Critical Strikes . | . . . Average Slot Usage (%) 90 | . 84 93 Engine 11 | . 13 10 Treads 30 | . 9 40 Leg 6 | . 18 . Storage 11 | . 14 10 Processor 3 | . . 4 Protection 2 | . . 3 Ballistic Gun 22 | . 24 20 Peak Build Rating 14 | 4 8 14 Average Rating 10 | 2 6 12 On Entrance 4 | . 4 8 Naked Turns 14 | . . 14 Heaviest Build 94 | 8 94 92 Greatest Support 80 | 20 40 80 Greatest Overweight (x) 4 | . 4 4 Average Overweight (x) . | . . 1 Largest Inventory Capacity 25 | 8 25 25 Average Capacity 21 | 7 13 24 Most Carried 25 | 6 12 25 Average Carried 16 | 4 8 20 Final Capacity 25 | 8 25 5 Final Carried 12 | 6 12 5 Class Distribution -------------------- 62% | Mutant 37% | Scavenger-Mutant Dominant Class ---------------- Mutant | -10/Materials Scavenger-Mutant | -9/Materials Resources | -11 -10 -9 ----------- Run | Yrd Mat Mat Matter Collected 1218 | 219 315 684 Remotely . | . . . Salvage Created 1589 | . 474 1115 Parts 109 | . 41 68 Haulers Intercepted 4 | . 1 3 Recyclers Shooed 3 | . . 3 Parts Field Recycled . | . . . Retrieved Matter . | . . . Parts Self-Destructed . | . . . Prevented . | . . . Kills | -11 -10 -9 ------- Run | Yrd Mat Mat Combat Hostiles Destroyed 30 | . 6 24 Guns 25 | . 6 19 AOE 5 | . . 5 Classes Destroyed 10 | . 6 4 Worker 1 | . . 1 Builder 3 | . 2 1 Hauler 4 | . 1 3 Recycler 1 | . 1 . Operator 2 | . 1 1 Watcher 4 | . 2 2 Swarmer 4 | . . 4 Grunt 20 | . 6 14 Duelist 1 | . . 1 Sentry 5 | . . 5 Best Kill Streak 5 | . 5 4 Combat Bots Only 3 | . 2 3 Max Kills in Single Turn 3 | . 2 3 Gunslinging 1 | . . 1 Exploded 2 | . . 2 Melee . | . . . Uniques/NPCs Destroyed . | . . . Combat | -11 -10 -9 -------- Run | Yrd Mat Mat Hostile Shots Fired 229 | . 23 206 Missed 65 | . 9 56 Damage Taken 2423 | . 206 2217 Core 432 | . 29 403 Absorbed by Shields . | . . . Core Remaining (%) 94 | 100 88 . Volleys Fired 134 | . 38 96 Largest 2 | . 2 2 Hottest 40 | . 40 40 Shots Fired 255 | . 76 179 Gun 244 | . 76 168 Cannon . | . . . Launcher 11 | . . 11 Special . | . . . Kinetic 244 | . 76 168 Thermal . | . . . Explosive 11 | . . 11 Electromagnetic . | . . . Robot Hit Streak 11 | . 9 11 Robot Miss Streak 4 | . 4 4 Penetration Max . | . . . Secondary Targets 2 | . 1 1 Max Gunslinging Chain 1 | . 1 1 Shots Hit Robots 151 | . 34 117 Core Hits 84 | . 23 61 Critical Kills 2 | . . 2 Critical Parts Destroyed 1 | . . 1 Critical Strikes 3 | . . 3 Destroy 3 | . . 3 Melee Attacks . | . . . Impact . | . . . Slashing . | . . . Piercing . | . . . Sneak Attacks . | . . . Combat Hostiles . | . . . Follow-up Attacks . | . . . Damage Inflicted 2607 | . 479 2128 Guns 1888 | . 464 1424 Cannons . | . . . Explosions 633 | . . 633 Melee . | . . . Ramming 86 | . 15 71 Kinetic 1888 | . 464 1424 Thermal . | . . . Explosive 633 | . . 633 Electromagnetic . | . . . Impact . | . . . Slashing . | . . . Piercing . | . . . Highest Corruption . | . . . Average Corruption . | . . . Corruption Purged . | . . . Corruption Blocked . | . . . Overload Shots . | . . . Overflow Damage 29 | . . 29 Projectiles . | . . . Explosions 29 | . . 29 Melee . | . . . Knockbacks 2 | . 2 . Impact 2 | . 2 . Kinetic . | . . . Secondary . | . . . Self-Inflicted Damage 117 | . . 117 Shots 3 | . . 3 Rammed 10 | . 2 8 Targets Rammed 14 | . 5 9 Kicked 3 | . 3 . Crushed 1 | . . 1 Highest Temperature 29 | . 9 29 Average Temperature 7 | . 5 8 Received Heat Transfer 963 | . 114 849 Siege Activations . | . . . Robots Corrupted . | . . . Combat Hostiles . | . . . Parts Fried . | . . . Impact Corruptions . | . . . Robots Melted . | . . . Combat Hostiles . | . . . Parts Melted . | . . . Heat Transferred . | . . . Parts Sabotaged . | . . . Parts Stolen . | . . . Parts Stripped . | . . . Power Chain Reactions . | . . . Alert | -11 -10 -9 ------- Run | Yrd Mat Mat Peak Influence 189 | . 147 189 Initial . | . . . Average 45 | . 30 53 Maximum Alert Level . | . . . Low Security (%) 100 | 100 100 100 Level 1 . | . . . Level 2 . | . . . Level 3 . | . . . Level 4 . | . . . Level 5 . | . . . High Security . | . . . Max Security . | . . . Squads Dispatched 5 | . 1 4 Investigation 1 | . . 1 Extermination . | . . . Reinforcement 4 | . 1 3 Assault . | . . . Garrison . | . . . Intercept . | . . . Searches Triggered . | . . . Construction Impeded 1 | . . 1 Haulers Reinforced . | . . . Active Scanning Responses . | . . . Cargo Convoy Interrupts . | . . . Stealth | -11 -10 -9 --------- Run | Yrd Mat Mat Distress Signals 9 | . 2 7 Communications Jammed . | . . . Distress Signals . | . . . Times Spotted 60 | . 15 45 Peak Tracking Total 8 | . 3 8 Tactical Retreats 3 | . 1 2 Traps | -11 -10 -9 ------- Run | Yrd Mat Mat Traps Triggered 3 | . 3 . Indirectly . | . . . Trap Hack Attempts . | . . . Triggered . | . . . Disarmed . | . . . Reprogrammed . | . . . Reused . | . . . Traps Extracted . | . . . Installed . | . . . Triggered . | . . . Machines | -11 -10 -9 ---------- Run | Yrd Mat Mat Machines Disabled 2 | . . 2 Max in Single Turn 2 | . . 2 Machines Repaired . | . . . Machines Dismantled . | . . . Machines Sabotaged . | . . . Overloaded Fab Kills . | . . . Hacking | -11 -10 -9 --------- Run | Yrd Mat Mat Machines Accessed 7 | . 2 5 Terminals 5 | . 1 4 Fabricators . | . . . Repair Stations . | . . . Recycling Units 1 | . 1 . Scanalyzers 1 | . . 1 Garrison Access . | . . . Total Hacks 16 | . 5 11 Successful 9 | . 3 6 Failed 7 | . 2 5 Catastrophic 1 | . . 1 Database Lockouts . | . . . Manual . | . . . Terminals 11 | . 3 8 Fabricators . | . . . Repair Stations . | . . . Recycling Units 2 | . 2 . Scanalyzers 3 | . . 3 Garrison Access . | . . . Terminal Hacks 5 | . 2 3 Branch Access Points 1 | . . 1 Hauler Manifests 1 | . 1 . Zone Layout 3 | . 1 2 Fabricator Hacks . | . . . Repair Station Hacks . | . . . Recycling Unit Hacks 1 | . 1 . Report Inventory 1 | . 1 . Scanalyzer 3 | . . 3 Insert Component 2 | . . 2 Analyze 1 | . . 1 Garrison Access Hacks . | . . . Unauthorized Hacks . | . . . Terminals . | . . . Fabricators . | . . . Repair Stations . | . . . Recycling Units . | . . . Scanalyzers . | . . . Garrison Access . | . . . Data Cores Recovered . | . . . Used . | . . . Hacking Detections 5 | . 1 4 Full Trace Events 1 | . . 1 Feedback Events . | . . . Feedback Blocked . | . . . Robot Schematics Acquired . | . . . Robots Built . | . . . Authchips . | . . . Time . | . . . Total Robot Build Rating . | . . . Part Schematics Acquired 1 | . . 1 Parts Built . | . . . Authchips . | . . . Time . | . . . Total Part Build Rating . | . . . Parts Repaired . | . . . Time . | . . . Parts Recycled . | . . . Recycled Matter . | . . . Retrieved Matter . | . . . Retrieved Components . | . . . Parts Scanalyzed 1 | . . 1 Part Schematics Acquired 1 | . . 1 Parts Damaged . | . . . Bothacking | -11 -10 -9 ------------ Run | Yrd Mat Mat Used RIF Installer . | . . . Robots Hacked . | . . . Non-combat . | . . . Combat . | . . . Robot Hacks Applied . | . . . Relay Couplers Released . | . . . Fabnet Peak Effective % . | . . . Robots Rewired . | . . . Allies Hacked . | . . . Hacks Repelled . | . . . Allies | -11 -10 -9 -------- Run | Yrd Mat Mat Total Allies . | . . . Largest Group . | . . . Highest-Rated Group . | . . . Highest-Rated Ally . | . . . Total Orders . | . . . Ally Attacks . | . . . Total Damage . | . . . Kills . | . . . Allies Corrupted . | . . . Allies Melted . | . . . Intel | -11 -10 -9 ------- Run | Yrd Mat Mat Robot Analysis Total . | . . . Derelict Logs Recovered . | . . . Drone Launches . | . . . Drone Recoveries . | . . . Exploration | -11 -10 -9 ------------- Run | Yrd Mat Mat Turns Passed 3461 | 61 1105 2295 Spaces Moved 1418 | 50 578 790 Core 44 | 18 . 26 Treads 868 | . 111 757 Legs 506 | 32 467 7 Wheels . | . . . Hover . | . . . Flight . | . . . Fastest Speed 50 | 50 120 50 Average Speed 202 | 94 158 241 Slowest Speed 480 | 120 480 480 Overloaded Moves . | . . . Propulsion Burnouts . | . . . Robots Hopped . | . . . Cave-ins Triggered . | . . . Exploration Rate (%) 35 | 4 47 55 Regions Visited 2 Branch Regions . Pre-discovered Areas . | . . . Known Exits Taken . | . . . Unknown Exits Taken 2 | 1 1 . Scrap Searched . | . . . Spaces Dug . | . . . Terrain Destroyed 64 | . . 64 Melee . | . . . Projectile . | . . . AOE 64 | . . 64 Terrain Rammed . | . . . Walls Destroyed . | . . . Machines Disabled . | . . . Actions | -11 -10 -9 --------- Run | Yrd Mat Mat Total 1735 | 63 689 983 Wait 69 | . 31 38 Move 1416 | 49 577 790 Hop . | . . . Pick Up 57 | 10 19 28 Fast Attach . | . . . Attach 26 | 4 8 14 Detach 1 | . 1 . Swap 9 | . 3 6 Drop 9 | . 7 2 Fire 134 | . 38 96 Melee . | . . . Ram 2 | . . 2 Kick 3 | . 3 . Crush 9 | . 2 7 Escape Stasis . | . . . Rewire . | . . . Trap . | . . . Miscellaneous . | . . . Route ------- -11/Scrapyard -10/Materials (discovered 2 exits: *Mat x2) -9/Materials (discovered 3 exits: [*Mat] / *Min x2) History --------- Turn | Location | Event 10 | -11/Scrapyard | Discovered new exit (range 16) 62 | -11/Scrapyard | Entered Materials 266 | -10/Materials | Discovered new exit (range 9) 318 | -10/Materials | Build established: Mutant 641 | -10/Materials | Discovered new exit (range 15) 1167 | -10/Materials | Entered another Materials area 1167 | -9/Materials | Evolved 2 slots: Propulsion x2 1404 | -9/Materials | Discovered new exit (range 9) 1988 | -9/Materials | Discovered new exit (range 3) 2130 | -9/Materials | Lost 6 parts (4n2w) 2471 | -9/Materials | Identified exit to Mines 2664 | -9/Materials | Build established: Scavenger-Mutant 3442 | -9/Materials | Core integrity fell below 50% 3448 | -9/Materials | Core integrity fell below 20% 3448 | -9/Materials | Released all parts (2) 3462 | -9/Materials | Destroyed by G-34 Mercenary with Small Laser Last Messages --------------- 03444_ Lgt. Treads destroyed. 03444_ Destroyed Lgt. Treads. 03445_ Lgt. Treads destroyed. 03445_ U-05 Engineer lays Concrete. 03445_ Critical hit (Burn: +37). 03446_ K-01 Serf collects debris. 03446_ L-31 Rogue destroyed. 03446_ Mni. Grenade Launcher destroyed. 03446_ Destroyed Mni. Grenade Launcher. 03446_ G-34 Mercenary destroyed. 03446_ Destroyed Wheel. 03446_ U-05 Engineer destroyed. 03447_ U-05 Engineer lays Concrete. 03447_ M-13 Machinist repairs Terrain Scanner. 03448_ Released Huge Storage Unit. 03448_ Released Targeting Computer. 03448_ U-05 Engineer lays Concrete. 03449_ K-01 Serf collects debris. 03450_ U-05 Engineer lays Concrete. 03456_ Slammed into K-01 Serf. Map ----- +----------------------------------------------------+ | ????????????????## """ """ ########??# # | | ?????####+####### #??# # | | ???? ^ #??# # | | ???? ^ ########## % #?## # | | ???? ^^ #?????#####+##### #?# | | ????? ########## #?????# # #?# | | ?????? ??????######+######??# # #?# % | | ??? ?????# #??# %+ #?# | | ??? "????# """ #??# # #?# | | ??# !????#""""" #??# # ######## | | ??# > " ???#""""" #??# # ##!! # | | ??? ||####""""" #??# # ##! # | | ???? # """ #??# # ## # | | ?????? #??########### # # | | ???# ??# ###############?????????# ####+### | | ???# # # ! #?????????# # | | ???# =*] # #?????????# + | | ???# /*]=[ # % ########### # | | ??## ## !==%!*[=# ## """"" # ######+# | | ??# ## ==%***###Y#########=""T"" # ^^# # | | # % u*![[% %+% # # # | | " + ! =%% ####* ! # # # | | ? # % = !!! =!!#??#] # # # | | ??# ! ## =! #??# """"" + + # | | ??# ##! !! #??# """"" # # # | | ?## ## g @#??# """"" ## ## # | | ## #??# ## ## # | | *##+######## #??########### ## # | | """ """ !]]## #??# #????????????# ## # | | ?""" """""!]%## #??# #????????????# ## # | | ?""" """""=!]## #??# #????????????# ## # | | ??"" ?""""" [## === #??# #????????????#+## # | | ??" ?? """ ## == #??# #???????????????######## | | ?? ???? ## == #??# #??????????????????????? | | ??????? # #??# #??????????????????????? | | ??????? "T" ####+###?? ??????????????????????? | | ??????? """ ! ????????? ??????????????????????? | | ?????? ?????????T ??????????????????????? | | ?????? ??? ????????? ??????????????????????? | | ??????#????####???????? #?????????????????????? | | ??????????????????????? ##?????????????????????? | | ??????????????????????? ???????????????????????? | | ??????????????????????? ???????????????????????? | | ??????????????????????# ???????????????????????? | | ??????????????????????# ???????????????????????? | | ??????????????????????? ???????????????????????? | | ???????????????????????? ???????????????????????? | | ???????????????????????? ???????????????????????? | | ?????????????????????????????????????????????????? | | ?????????????????????????????????????????????????? | +----------------------------------------------------+ Best States ------------- Heat Dissipation 35 Energy Generation 10 Energy Capacity 250 Matter Stores 300 Matter Capacity 300 Sight Range 16 Terrain Scan Density 10 Armor Coverage 150 Evasion (%) 55 Targeting Accuracy 5 Recoil Reduction 4 Item Schematics ----------------- Flight Unit | -9/Materials | Scanalyzed Robot Schematics ------------------ None Fabricated ------------ Nothing Alien Tech Used ----------------- None Achievements -------------- None Challenges ------------ None Game ------ Seed MiningAssemblyField Manual? 0 Play Time 00:27:40 Cumulative 24.1 hours Start 2025.03.17 @ 07:35:31 End 2025.03.17 @ 08:22:39 Sessions 1 Manual Loads 0 Difficulty Rogue Special Mode None Game No. 25 Rogue 25 Adventurer 0 Explorer 0 Win Type - Total 0 Types 0/0/0/0/0/0/0/0/0 Lore% 9 Gallery% 20 Achievement% 21 Wizard Run 0 Options --------- Layout 1 ASCII 0 Keyboard 1 Movement Vi Keybinds 0 Fullscreen 1 Font 32/SmallcapsGlow Map View 50x40 Zoom Use 0% Tactical HUD 1 Map Filters NONE Filters NONE Steam 1 RUN: 3b2e3254-5db5-4d75-a516-27647b9f9415